Cogmind - Beta 9 @@@ ROGUE MODE // 2019.10.26 @ 18:37:02 Player: TheGreatBorealis Result: Destroyed by D-53 Grenadier with Mini Grenade Launcher Performance ------------- Evolutions (0) 0 Regions Visited (4) 800 Robots Destroyed (10) 50 Value Destroyed (201) 201 Prototype IDs (0) 0 Alien Tech Used (0) 0 Bonus (0) 0 TOTAL SCORE: 1051 Bonus ------- None Cogmind --------- Core Integrity 0/250 Matter 272/300 Energy 99/100 System Corruption 0% Temperature Cool (0) Location -9/Mines Parts ------- Power (1) Propulsion (2) Utility (2) Improved Signal Interpreter Targeting Computer Weapon (2) Inventory (4) Light Ion Engine Aluminum Leg High-capacity Storage Unit Improved Signal Interpreter Peak State ------------ Power Ion Engine Propulsion Aluminum Leg Aluminum Leg Utility Improved Signal Interpreter Targeting Computer Weapon Assault Rifle Light Assault Rifle Inventory Aluminum Leg Small Storage Unit Improved Signal Interpreter Small Laser [Rating: 8] Favorites ----------- Power Ion Engine Engine Ion Engine Propulsion Aluminum Leg Treads Light Treads Leg Aluminum Leg Utility Targeting Computer Device Sensor Array Storage Small Storage Unit Processor Targeting Computer Weapon Assault Rifle Ballistic Gun Assault Rifle Build | -11 -10 -10 -10 -9 ------- Run | Scr Mat Min Exi Min Slots Evolved . | . . . . . Power . | . . . . . Propulsion . | . . . . . Utility . | . . . . . Weapon . | . . . . . Parts Attached 16 | 6 6 4 . . Power 2 | 1 . 1 . . Engine 2 | 1 . 1 . . Core . | . . . . . Reactor . | . . . . . Propulsion 7 | 2 5 . . . Treads 2 | . 2 . . . Leg 5 | 2 3 . . . Wheel . | . . . . . Hover . | . . . . . Flight . | . . . . . Utility 4 | 1 1 2 . . Device 1 | . 1 . . . Storage 1 | 1 . . . . Processor 2 | . . 2 . . Hackware . | . . . . . Protection . | . . . . . Artifact . | . . . . . Weapon 3 | 2 . 1 . . Energy Gun . | . . . . . Energy Cannon . | . . . . . Ballistic Gun 3 | 2 . 1 . . Ballistic Cannon . | . . . . . Launcher . | . . . . . Special Weapon . | . . . . . Impact Weapon . | . . . . . Slashing Weapon . | . . . . . Piercing Weapon . | . . . . . Special Melee Weapon . | . . . . . Unidentified Prototypes . | . . . . . Parts Lost 8 | . 1 2 . 5 Power 2 | . . 1 . 1 Propulsion 2 | . . . . 2 Utility 1 | . 1 . . . Weapon 3 | . . 1 . 2 Highest Loss Streak 5 | . 1 3 . 5 Average Slot Usage (%) 95 | . 90 92 100 82 Engine 13 | . 14 13 14 11 Leg 26 | . 24 28 28 22 Device 1 | . 5 . . . Storage 4 | . 14 7 . . Processor 18 | . . 14 28 28 Ballistic Gun 27 | . 28 27 28 19 Naked Turns . | . . . . . Heaviest Build 13 | 12 13 12 8 8 Greatest Support 40 | 20 40 20 20 20 Greatest Overweight (x) . | . . . . . Average Overweight (x) . | . . . . . Largest Inventory Capacity 6 | 6 6 6 4 4 Average Capacity 4 | 4 6 5 4 4 Most Carried 6 | 4 6 6 4 4 Average Carried 4 | 3 5 4 4 4 Final Capacity 4 | . . . . 4 Final Carried 4 | . . . . 4 Class Distribution -------------------- 100% | Mutant Dominant Class ---------------- Mutant | -10/Materials Mutant | -10/Mines Mutant | -10/Exiles Mutant | -9/Mines Resources | -11 -10 -10 -10 -9 ----------- Run | Scr Mat Min Exi Min Matter Collected 454 | 183 157 114 . . Remotely . | . . . . . Salvage Created 241 | . 157 84 . . Parts 13 | . 8 5 . . Haulers Intercepted . | . . . . . Recyclers Shooed . | . . . . . Parts Field Recycled . | . . . . . Retrieved Matter . | . . . . . Parts Self-Destructed . | . . . . . Prevented . | . . . . . Kills | -11 -10 -10 -10 -9 ------- Run | Scr Mat Min Exi Min Combat Hostiles Destroyed 9 | . 3 6 . . Guns 9 | . 3 6 . . Classes Destroyed 3 | . 2 1 . . Watcher 1 | . 1 . . . Swarmer 6 | . . 6 . . Grunt 3 | . 3 . . . Best Kill Streak 3 | . 1 3 . . Combat Bots Only 3 | . 1 3 . . Max Kills in Single Turn 1 | . 1 1 . . Gunslinging . | . . . . . Exploded . | . . . . . Melee . | . . . . . Uniques/NPCs Destroyed . | . . . . . Combat | -11 -10 -10 -10 -9 -------- Run | Scr Mat Min Exi Min Damage Taken 907 | . 232 282 . 393 Core 265 | . 12 29 . 224 Absorbed by Shields . | . . . . . Core Remaining (%) 100 | 100 . . . . Volleys Fired 43 | . 20 20 1 2 Largest 2 | . 2 2 2 1 Hottest 40 | . 40 40 40 20 Shots Fired 80 | . 40 36 2 2 Gun 80 | . 40 36 2 2 Cannon . | . . . . . Launcher . | . . . . . Special . | . . . . . Kinetic 80 | . 40 36 2 2 Thermal . | . . . . . Explosive . | . . . . . Electromagnetic . | . . . . . Robot Hit Streak 9 | . 9 5 . . Robot Miss Streak 3 | . 3 3 . 2 Penetration Max . | . . . . . Secondary Targets 2 | . . 2 . . Max Gunslinging Chain 1 | . . 1 . . Shots Hit Robots 48 | . 28 20 . . Core Hits 18 | . 10 8 . . Critical Hits 1 | . . 1 . . Critical Kills 1 | . . 1 . . Critical Parts Destroyed . | . . . . . Melee Attacks . | . . . . . Impact . | . . . . . Slashing . | . . . . . Piercing . | . . . . . Sneak Attacks . | . . . . . Combat Hostiles . | . . . . . Follow-up Attacks . | . . . . . Damage Inflicted 535 | . 304 213 18 . Guns 535 | . 304 213 18 . Cannons . | . . . . . Explosions . | . . . . . Melee . | . . . . . Ramming . | . . . . . Kinetic 535 | . 304 213 18 . Thermal . | . . . . . Explosive . | . . . . . Electromagnetic . | . . . . . Impact . | . . . . . Slashing . | . . . . . Piercing . | . . . . . Highest Corruption . | . . . . . Average Corruption . | . . . . . Corruption Purged . | . . . . . Overload Shots . | . . . . . Overflow Damage . | . . . . . Projectiles . | . . . . . Explosions . | . . . . . Melee . | . . . . . Knockbacks . | . . . . . Impact . | . . . . . Kinetic . | . . . . . Secondary . | . . . . . Self-Inflicted Damage . | . . . . . Shots . | . . . . . Rammed . | . . . . . Targets Rammed . | . . . . . Kicked . | . . . . . Crushed . | . . . . . Highest Temperature 12 | . 12 . . . Average Temperature 7 | . 7 . . . Received Heat Transfer 152 | . 132 . . 20 Siege Activations . | . . . . . Robots Corrupted . | . . . . . Combat Hostiles . | . . . . . Parts Fried . | . . . . . Impact Corruptions . | . . . . . Robots Melted . | . . . . . Combat Hostiles . | . . . . . Parts Melted . | . . . . . Heat Transferred . | . . . . . Parts Sabotaged . | . . . . . Parts Stolen . | . . . . . Parts Stripped . | . . . . . Power Chain Reactions . | . . . . . Missiles Intercepted . | . . . . . Alert | -11 -10 -10 -10 -9 ------- Run | Scr Mat Min Exi Min Peak Influence 187 | . 107 187 . . Average Influence 79 | . 61 130 . . Maximum Alert Level . | . . . . . Low Security (%) 100 | . . . . . Level 1 . | . . . . . Level 2 . | . . . . . Level 3 . | . . . . . Level 4 . | . . . . . Level 5 . | . . . . . High Security . | . . . . . Max Security . | . . . . . Squads Dispatched 1 | . 1 . . . Investigation . | . . . . . Extermination . | . . . . . Reinforcement 1 | . 1 . . . Assault . | . . . . . Garrison . | . . . . . Intercept . | . . . . . Construction Impeded . | . . . . . Haulers Reinforced . | . . . . . Stealth | -11 -10 -10 -10 -9 --------- Run | Scr Mat Min Exi Min Distress Signals . | . . . . . Communications Jammed . | . . . . . Distress Signals . | . . . . . Times Spotted 32 | . 11 6 . 15 Peak Tracking Total 16 | . 3 3 . 16 Tactical Retreats 2 | . 2 . . . Traps | -11 -10 -10 -10 -9 ------- Run | Scr Mat Min Exi Min Traps Triggered . | . . . . . Indirectly . | . . . . . Trap Hack Attempts . | . . . . . Triggered . | . . . . . Disarmed . | . . . . . Reprogrammed . | . . . . . Reused . | . . . . . Traps Extracted . | . . . . . Installed . | . . . . . Triggered . | . . . . . Machines | -11 -10 -10 -10 -9 ---------- Run | Scr Mat Min Exi Min Machines Disabled 1 | . . 1 . . Max in Single Turn 1 | . . 1 . . Machines Sabotaged . | . . . . . Garrisons Compromised . | . . . . . Overloaded Fab Kills . | . . . . . Fab Network Shutdowns . | . . . . . Hacking | -11 -10 -10 -10 -9 --------- Run | Scr Mat Min Exi Min Machines Accessed 4 | . 1 . 3 . Terminals 1 | . 1 . . . Fabricators . | . . . . . Repair Stations . | . . . . . Recycling Units . | . . . . . Scanalyzers . | . . . . . Garrison Access . | . . . . . Total Hacks 34 | . 2 . 32 . Successful 32 | . . . 32 . Failed 2 | . 2 . . . Catastrophic 1 | . 1 . . . Database Lockouts . | . . . . . Manual 4 | . 2 . 2 . Terminals 2 | . 2 . . . Fabricators . | . . . . . Repair Stations . | . . . . . Recycling Units . | . . . . . Scanalyzers . | . . . . . Garrison Access . | . . . . . Terminal Hacks 32 | . . . 32 . Record 32 | . . . 32 . Fabricator Hacks . | . . . . . Repair Station Hacks . | . . . . . Recycling Unit Hacks . | . . . . . Scanalyzer . | . . . . . Garrison Access Hacks . | . . . . . Unauthorized Hacks . | . . . . . Terminals . | . . . . . Fabricators . | . . . . . Repair Stations . | . . . . . Recycling Units . | . . . . . Scanalyzers . | . . . . . Garrison Access . | . . . . . Data Cores Recovered . | . . . . . Used . | . . . . . Hacking Detections . | . . . . . Full Trace Events . | . . . . . Feedback Events . | . . . . . Feedback Blocked . | . . . . . Robot Schematics Acquired . | . . . . . Robots Built . | . . . . . Matter . | . . . . . Time . | . . . . . Total Robot Build Rating . | . . . . . Part Schematics Acquired . | . . . . . Parts Built . | . . . . . Matter . | . . . . . Time . | . . . . . Total Part Build Rating . | . . . . . Parts Repaired . | . . . . . Time . | . . . . . Parts Recycled . | . . . . . Recycled Matter . | . . . . . Retrieved Matter . | . . . . . Retrieved Components . | . . . . . Parts Scanalyzed . | . . . . . Part Schematics Acquired . | . . . . . Parts Damaged . | . . . . . Bothacking | -11 -10 -10 -10 -9 ------------ Run | Scr Mat Min Exi Min Used RIF Installer . | . . . . . Robots Hacked . | . . . . . Non-combat . | . . . . . Combat . | . . . . . Robot Hacks Applied . | . . . . . Relay Couplers Released . | . . . . . Robots Rewired 2 | . . . 2 . Allies Hacked . | . . . . . Hacks Repelled . | . . . . . Allies | -11 -10 -10 -10 -9 -------- Run | Scr Mat Min Exi Min Total Allies 2 | . . . 2 . Largest Group 2 | . . . 2 2 Highest-Rated Group 29 | . . . 29 29 Highest-Rated Ally 21 | . . . 21 21 Total Orders . | . . . . . Ally Attacks 1 | . . . . 1 Total Damage 15 | . . . . 15 Kills . | . . . . . Allies Corrupted . | . . . . . Allies Melted . | . . . . . Intel | -11 -10 -10 -10 -9 ------- Run | Scr Mat Min Exi Min Robot Analysis Total . | . . . . . Derelict Logs Recovered . | . . . . . Drone Launches . | . . . . . Drone Recoveries . | . . . . . Exploration | -11 -10 -10 -10 -9 ------------- Run | Scr Mat Min Exi Min Turns Passed 1570 | 90 340 335 762 43 Spaces Moved 1156 | 73 212 229 602 40 Core 32 | 18 . . . 14 Treads 12 | . 12 . . . Legs 1112 | 55 200 229 602 26 Wheels . | . . . . . Hover . | . . . . . Flight . | . . . . . Fastest Speed 50 | 50 120 120 120 50 Average Speed 118 | 102 122 120 120 95 Slowest Speed 160 | 120 160 120 120 120 Overloaded Moves . | . . . . . Propulsion Burnouts . | . . . . . Robots Hopped . | . . . . . Cave-ins Triggered . | . . . . . Exploration Rate (%) 36 | 4 27 50 90 11 Regions Visited 4 Branch Regions 3 Pre-discovered Areas 2 | . . 1 1 . Known Exits Taken 2 | . . 1 1 . Unknown Exits Taken 2 | 1 1 . . . Scrap Searched 1 | . . 1 . . Spaces Dug . | . . . . . Terrain Destroyed . | . . . . . Melee . | . . . . . Projectile . | . . . . . AOE . | . . . . . Actions | -11 -10 -10 -10 -9 --------- Run | Scr Mat Min Exi Min Total 1282 | 87 255 257 640 43 Wait 35 | . 12 . 22 1 Move 1152 | 72 211 228 601 40 Hop . | . . . . . Pick Up 17 | 9 4 3 1 . Fast Attach 2 | 1 1 . . . Attach 8 | 5 . 3 . . Detach . | . . . . . Swap 6 | . 5 1 . . Drop 5 | . 2 2 1 . Fire 43 | . 20 20 1 2 Melee . | . . . . . Ram . | . . . . . Kick . | . . . . . Crush . | . . . . . Escape Stasis . | . . . . . Rewire 14 | . . . 14 . Trap . | . . . . . Miscellaneous . | . . . . . Route ------- -11/Scrapyard -10/Materials -10/Mines (discovered 2 exits: *Mat / *Exi) -10/Exiles (discovered 2 exits: *Min x2) -9/Mines History --------- Turn | Location | Event 3 | -11/Scrapyard | Discovered new exit (range 16) 91 | -11/Scrapyard | Entered Materials 311 | -10/Materials | Build established: Mutant 408 | -10/Materials | Discovered new exit (range 16) 431 | -10/Materials | Entered Mines 453 | -10/Mines | Met a Derelict bent on vengeance 483 | -10/Mines | Lost 3 parts (1p1u1w) 580 | -10/Mines | Discovered new exit (range 14) 589 | -10/Mines | Learned location of Storage (-9) 601 | -10/Mines | Identified exit to Materials 658 | -10/Mines | A weapon hastily lodged in a ceiling crevice suddenly fell to the ground 762 | -10/Mines | Deemed a non-threat by the Exiles lab entrance 762 | -10/Mines | Discovered new exit (range 5) 765 | -10/Mines | Identified exit to Exiles 766 | -10/Mines | Entered Exiles 766 | -10/Exiles | Found Exiles lab destroyed 870 | -10/Exiles | Learned location of Zion (-6) 1359 | -10/Exiles | Discovered new exit (range 12) 1371 | -10/Exiles | Identified exit to Mines 1500 | -10/Exiles | Discovered exit to Mines (range 15) 1528 | -10/Exiles | Entered Mines 1528 | -9/Mines | Accompanied by 2 allies 1544 | -9/Mines | Assembled infested the area 1549 | -9/Mines | Assisted by a Guerilla fighting off Assembled 1565 | -9/Mines | Core integrity fell below 50% 1570 | -9/Mines | Core integrity fell below 20% 1571 | -9/Mines | Destroyed by D-53 Grenadier with Mini Grenade Launcher Last Messages --------------- 01555_ C-30 ARC bursts open, deploying its payload. 01555_ D-53 Grenadier unfolds itself. 01556_ Pressure Siphon disabled. 01556_ Assault Rifle destroyed. 01557_ Commando 1a destroyed. 01557_ Mercenary 1a destroyed. 01561_ as-97219 destroyed. 01561_ as-03261 destroyed. 01563_ The unstable cave ceiling collapses. 01563_ Lgt. Assault Rifle destroyed. 01563_ Ion Engine destroyed. 01563_ Aluminum Leg destroyed. 01563_ as-92288 destroyed. 01563_ as-83639 destroyed. 01567_ as-96929 destroyed. 01567_ as-57875 destroyed. 01567_ as-86042 destroyed. 01570_ The unstable cave ceiling collapses. 01570_ K-01 Serf collects debris. 01571_ T-07 Excavator destroyed. Map ----- +----------------------------------------------------+ | | | | | | | | | | | | | | | | | | | | | | | ??????????????????????????????????????????????? | | ??????????????????????????????????????????????? | | ???????????????????####???????????????????????? | | ??????????????????## ##?????????????????????? | | ??????????????????# #?????????????????????? | | ?????????????????## ?????????????????????? | | ????????????????? ?????????????????????? | | ?????????????????? ?????????????????????? | | ??????????????????# ??????????????????????? | | ??????????????????# ??????????????????????? | | ??????????????????? ??????????????????????? | | ???????????????????? k ??????????????????????? | | ????????????????????#% ##?????????????????????? | | ???????????????????## #?????????????????????? | | ??????????????????## @ #?????????????????????? | | ??????????????????# ###???????????????????? | | ???????????????##### ##??????????????????? | | ??????????????## ## #??????????????????? | | ?????????###### %! #??????????????????? | | ?????????# = =% ##????????????????? | | ?????????# d #????????????????? | | ?????????#### ## " a########?????????? | | ????????????###### *% !#?????? | | ?????????????????# " da#######?????????? | | ?????????????????## # #??????????????? | | ??????????????????## ####???????????? | | ???????????????????## % ]! ????? | | ????????????????????## % % *%= ????? | | ?????????????????????# # ######## ?????? | | ????????????????????# #??????????????? | | ????????????????????# # ###??????????????? | | ????????????????????## #####????????????????? | | ?????????????????????#####????????????????????? | | ??????????????????????????????????????????????? | | ??????????????????????????????????????????????? | | ??????????????????????????????????????????????? | | ??????????????????????????????????????????????? | | ??????????????????????????????????????????????? | | ??????????????????????????????????????????????? | +----------------------------------------------------+ Best States ------------- Heat Dissipation 25 Energy Generation 10 Energy Capacity 250 Matter Stores 272 Matter Capacity 300 Sight Range 16 Robot Scan Range 10 Terrain Scan Density 10 Evasion (%) 50 Targeting Accuracy 5 Recoil Reduction 2 Item Schematics ----------------- None Robot Schematics ------------------ None Fabricated ------------ Nothing Alien Tech Used ----------------- None Achievements -------------- A New Friend Challenges ------------ None Game ------ Seed RiotDispersionBay Manual? 0 Play Time 00:12:48 Cumulative 11.4 hours Start 2019.10.26 @ 18:24:54 End 2019.10.26 @ 18:37:02 Sessions 1 Manual Loads 0 Difficulty Rogue Special Mode None Game No. 27 Rogue 27 Adventurer 0 Explorer 0 Win Type - Total 0 Types 0/0/0/0/0/0/0 Lore% 16 Gallery% 20 Achievement% 19 Wizard Run 0 Options --------- ASCII 0 Keyboard 0 Movement Mouse Keybinds 0 Fullscreen 2 Font 16/Terminus Map View 76x50 Tactical HUD 1 Map Filters NONE Filters NONE Steam 1 RUN: 3f1587e0-4e18-4183-b86b-77e6789d1c94